bitfinex-derivatives/quotes_BNBF0:USTF0_20251027
["timestamp","ask_amount","ask_price","bid_price","bid_amount"]
[1761552562635,2.148398,1157.2,1154.4,0.56216166]
[1761552562832,2.148398,1157.2,1154.1,1.181]
[1761552563033,2.148398,1157.2,1154.2,0.56219352]
[1761552563237,2.148398,1157.2,1154.3,0.56219352]
[1761552563436,2.148398,1157.2,1154.4,0.56219352]
[1761552563632,2.148398,1157.2,1154.1,1.181]
[1761552563933,3.0077572,1157.7,1154.2,0.56224205]
[1761552564131,3.0077572,1157.7,1154.3,0.56224205]
[1761552564336,2.29888481,1157.9,1154.4,0.56224205]
[1761552564532,2.29888481,1157.9,1154.1,1.181]
[1761552564738,2.29888481,1157.9,1154.2,0.56230681]
[1761552565034,2.29888481,1157.9,1154.3,0.56230681]
[1761552565238,2.29888481,1157.9,1154.4,0.56230681]
[1761552565433,2.29888481,1157.9,1154.1,1.181]
[1761552565738,2.29888481,1157.9,1154.2,0.56233107]
[1761552565937,0.15048681,1157.9,1154.3,0.56233107]
[1761552566137,0.15048681,1157.9,1154.4,0.56233107]
[1761552566432,0.15048681,1157.9,1154.1,1.181]
[1761552566637,0.15048681,1157.9,1154.2,0.562367]
[1761552566838,0.15048681,1157.9,1154.3,0.562367]
[1761552567036,0.15048681,1157.9,1154.4,0.562367]
[1761552567239,0.15048681,1157.9,1154.1,1.181]
[1761552567437,0.15048681,1157.9,1154.2,0.56238932]
[1761552567640,0.15048681,1157.9,1154.3,0.56238932]
[1761552567841,0.15048681,1157.9,1154.4,0.56238932]
[1761552568038,0.15048681,1157.9,1154.1,1.181]
[1761552568240,0.15048681,1157.9,1154.2,0.56238615]
[1761552568439,0.15048681,1157.9,1154.3,0.56238615]
[1761552568640,0.15048681,1157.9,1154.4,0.56238615]
[1761552568842,0.15048681,1157.9,1154.1,1.181]
[1761552569039,0.15048681,1157.9,1154.2,0.56242262]
[1761552569240,0.15048681,1157.9,1154.3,0.56242262]
[1761552569545,2.148398,1156.8,1154.1,1.181]
[1761552569744,2.148398,1156.8,1154.2,0.56248722]
[1761552569943,2.148398,1156.8,1154.1,1.181]
[1761552570143,2.148398,1156.8,1154.2,0.56248722]
[1761552570343,2.148398,1156.8,1154.1,1.181]
[1761552570541,2.148398,1156.8,1154.2,0.56248268]
[1761552570745,2.148398,1156.8,1154.1,1.181]
[1761552570943,2.148398,1156.8,1154.2,0.56248268]
[1761552571143,2.148398,1156.4,1154.1,1.181]
[1761552571442,2.148398,1156.4,1154.2,0.56245497]
[1761552571747,2.148398,1157.0,1154.1,1.181]
[1761552572043,2.148398,1156.4,1154.2,0.56247403]
[1761552572246,2.148398,1156.4,1154.1,1.181]
[1761552572445,2.148398,1156.4,1154.2,0.56246973]
[1761552572643,2.148398,1156.5,1154.3,0.56246973]
[1761552572844,2.148398,1156.5,1154.1,1.181]
[1761552573041,2.148398,1156.5,1154.2,0.56246973]
[1761552573245,3.0077572,1156.9,1154.3,0.56246973]
[1761552573445,3.0077572,1156.9,1154.1,1.181]
[1761552573647,2.148398,1156.5,1154.2,0.56251101]
[1761552573842,2.148398,1156.5,1154.3,0.56251101]
[1761552574041,2.148398,1156.5,1154.1,1.181]
[1761552574242,2.148398,1156.5,1154.2,0.56250931]
[1761552574446,2.148398,1156.5,1154.3,0.56250931]
[1761552574647,2.148398,1156.5,1154.1,1.181]
[1761552574846,2.148398,1156.5,1154.2,0.56255147]
[1761552575047,2.148398,1156.5,1154.3,0.56255147]
[1761552575248,2.148398,1156.5,1154.1,1.181]
[1761552575449,2.148398,1156.5,1154.2,0.56259949]
[1761552575745,2.148398,1156.6,1154.3,0.56259949]
[1761552575948,2.148398,1156.6,1154.1,1.181]
[1761552576149,2.148398,1156.6,1154.2,0.56259658]
[1761552576349,2.148398,1156.6,1154.3,0.56259658]
[1761552576546,2.148398,1156.6,1154.1,1.181]
[1761552576747,2.148398,1156.6,1154.2,0.5626543]
[1761552576946,2.148398,1156.6,1154.3,0.5626543]
[1761552577146,2.148398,1156.6,1154.1,1.181]
[1761552577348,2.148398,1156.6,1154.2,0.56265982]
[1761552577550,2.148398,1156.6,1154.3,0.56265982]
[1761552577747,2.148398,1156.6,1154.1,1.181]
[1761552577950,2.148398,1156.6,1154.2,0.56272003]
[1761552578253,2.148398,1156.6,1154.3,0.56272003]
[1761552578448,3.0077572,1157.1,1154.4,0.56272003]
[1761552578646,3.0077572,1157.1,1154.1,1.181]
[1761552578851,2.148398,1157.3,1154.2,0.56275571]
[1761552579049,2.148398,1157.3,1154.3,0.56275571]
[1761552579251,2.148398,1157.3,1154.4,0.56275571]
[1761552579449,2.148398,1157.3,1154.1,1.181]
[1761552579751,2.148398,1157.3,1154.2,0.56284372]
[1761552579949,2.148398,1157.3,1154.3,0.56284372]
[1761552580150,2.148398,1157.3,1154.4,0.56284372]
[1761552580349,2.148398,1157.3,1154.1,1.181]
[1761552580550,2.148398,1157.3,1154.2,0.56294947]
[1761552580753,2.148398,1157.3,1154.3,0.56294947]
[1761552580953,2.148398,1157.3,1154.4,0.56294947]
[1761552581153,2.148398,1157.3,1154.1,1.181]
[1761552581354,2.148398,1157.3,1154.2,0.56296325]
[1761552581648,2.148398,1157.3,1154.3,0.56296325]
[1761552581848,2.148398,1157.3,1154.4,0.56296325]
[1761552582053,2.148398,1157.3,1154.1,1.181]
[1761552582252,2.148398,1157.3,1154.2,0.5630808]
[1761552582551,2.148398,1157.3,1154.3,0.5630808]
[1761552582752,2.148398,1157.3,1154.4,0.5630808]
[1761552582951,2.148398,1157.3,1154.1,1.181]
[1761552583154,2.148398,1157.3,1154.2,0.5631538]
[1761552583454,2.148398,1157.3,1154.3,0.5631538]
[1761552583750,2.148398,1157.3,1154.4,0.5631538]
[1761552583954,2.148398,1157.3,1154.1,1.181]
[1761552584158,2.148398,1157.3,1154.2,0.56324232]
[1761552584360,2.148398,1157.3,1154.3,0.56324232]
[1761552584558,2.148398,1157.4,1154.4,0.56324232]
[1761552584857,2.148398,1157.4,1154.1,1.181]
[1761552584858,2.148398,1157.4,1154.5,0.56324232]
[1761552585058,2.148398,1157.4,1154.1,1.181]
[1761552585353,2.148398,1157.4,1154.2,0.56335469]
[1761552585656,2.148398,1157.4,1154.3,0.56335469]
[1761552585853,2.148398,1157.4,1154.4,0.56335469]
[1761552586057,2.148398,1157.4,1154.1,1.181]
[1761552586256,2.148398,1157.0,1154.2,0.56345878]
[1761552586456,2.148398,1157.0,1154.3,0.56345878]
[1761552586655,2.148398,1157.0,1154.4,0.56345878]
[1761552586860,2.148398,1157.0,1154.5,0.56345878]
[1761552587061,2.148398,1157.0,1154.1,1.181]
[1761552587261,2.148398,1157.0,1154.2,0.56357649]
[1761552587561,2.148398,1157.0,1154.3,0.56357649]
[1761552587761,2.148398,1157.0,1154.4,0.56357649]
[1761552587958,2.148398,1157.0,1154.5,0.56357649]
[1761552588260,2.148398,1156.8,1154.1,1.181]
[1761552588462,2.148398,1156.8,1154.2,0.56377875]
[1761552588659,2.148398,1156.8,1154.3,0.56377875]
[1761552588858,2.148398,1156.7,1154.4,0.56377875]
[1761552589159,2.148398,1156.7,1154.5,0.56377875]
[1761552589362,2.148398,1156.7,1154.1,1.82757355]
[1761552589560,2.148398,1156.7,1154.2,0.56388272]
[1761552589762,2.148398,1156.7,1154.3,0.56388272]
[1761552589962,2.148398,1156.7,1154.4,0.56388272]
[1761552590164,2.148398,1156.7,1154.5,0.56388272]
[1761552590462,2.148398,1156.5,1154.1,1.82757355]
[1761552590661,2.148398,1156.5,1154.2,0.56399461]
[1761552590860,3.0077572,1156.9,1154.3,0.56399461]
[1761552591062,3.0077572,1156.9,1154.4,0.56399461]
[1761552591262,2.148398,1157.0,1154.5,0.56399461]
[1761552591463,2.148398,1157.0,1154.6,0.56412121]
[1761552591662,2.148398,1157.0,1154.1,1.181]
[1761552591862,2.148398,1157.5,1154.2,0.56414454]
[1761552592066,2.148398,1157.5,1154.3,0.56414454]
[1761552592366,2.148398,1157.5,1154.4,0.56414454]
[1761552592563,2.148398,1157.5,1154.5,0.56414454]
[1761552592763,2.148398,1157.5,1154.1,1.181]
[1761552592967,2.148398,1157.5,1154.2,0.56233704]
[1761552593263,2.148398,1157.5,1154.3,0.56233704]
[1761552593471,2.148398,1157.4,1154.4,0.56233704]
[1761552593769,2.148398,1157.4,1154.5,0.56233704]
[1761552593968,2.148398,1157.4,1154.1,1.181]
[1761552594167,2.148398,1157.4,1154.2,0.56251745]
[1761552594367,2.148398,1157.4,1154.3,0.56251745]
[1761552594569,2.148398,1156.6,1154.4,0.56251745]
[1761552594768,2.148398,1156.6,1154.5,0.56251745]
[1761552594965,3.0077572,1157.0,1154.6,0.56251745]
[1761552595265,3.0077572,1157.0,1154.1,1.181]
[1761552595470,3.0077572,1157.0,1154.2,0.56298863]
[1761552595669,2.148398,1157.5,1154.3,0.56298863]
[1761552595870,2.148398,1157.5,1154.4,0.56298863]
[1761552596069,2.148398,1157.5,1154.5,0.56298863]
[1761552596365,2.148398,1157.5,1154.6,0.56298863]
[1761552596569,2.148398,1157.5,1154.1,1.181]
[1761552596769,2.148398,1157.5,1154.2,0.56318622]
[1761552596969,2.148398,1157.5,1154.3,0.56318622]
[1761552597166,2.148398,1157.5,1154.4,0.56318622]
[1761552597370,2.148398,1157.5,1154.5,0.56318622]
[1761552597567,2.148398,1157.5,1154.6,0.56318622]
[1761552597867,0.15062164,1156.8,1154.1,1.181]
[1761552598067,0.15062164,1156.8,1154.2,0.5631884]
[1761552598268,0.15062164,1156.8,1154.3,0.5631884]
[1761552598570,0.15062164,1156.8,1154.4,0.5631884]
[1761552598866,0.15062164,1156.8,1154.5,0.5631884]
[1761552599071,0.15062164,1156.8,1154.6,0.5631884]
[1761552599266,0.15062164,1156.8,1154.1,1.181]
[1761552599469,0.15062164,1156.8,1154.2,0.56328262]
[1761552599667,0.15062164,1156.8,1154.3,0.56328262]
[1761552599870,0.15062164,1156.8,1154.4,0.56328262]
[1761552600067,0.15062164,1156.8,1154.5,0.56328262]
[1761552600271,2.148398,1156.3,1154.1,1.82757355]
[1761552600467,2.148398,1156.3,1154.2,0.56330308]
[1761552600667,2.148398,1156.3,1154.3,0.56330308]
[1761552600868,2.148398,1156.3,1154.4,0.56330308]
[1761552601073,2.148398,1156.3,1154.5,0.56330308]
[1761552601272,2.148398,1156.3,1154.1,1.82757355]
[1761552601472,2.148398,1156.3,1154.2,0.56333956]
[1761552601773,2.148398,1156.3,1154.3,0.56333956]
[1761552602069,2.148398,1156.3,1154.4,0.56333956]
[1761552602371,2.148398,1156.2,1154.1,1.82757355]
[1761552602572,2.148398,1156.2,1154.2,0.56339691]
[1761552602772,2.148398,1156.2,1154.3,0.56339691]
[1761552602976,2.148398,1156.1,1154.4,0.56339691]
[1761552603176,2.148398,1156.1,1154.1,1.82757355]
[1761552603377,2.148398,1156.1,1154.2,0.56337212]
[1761552603673,2.148398,1156.1,1154.3,0.56337212]
[1761552603976,2.148398,1156.1,1154.4,0.56337212]
[1761552604173,2.148398,1156.1,1154.1,1.82757355]
[1761552604381,3.0077572,1156.5,1154.1,1.82757355]
[1761552604382,2.148398,1156.2,1154.2,0.56334176]
[1761552604674,2.148398,1156.2,1154.3,0.56334176]
[1761552604877,2.148398,1156.2,1154.4,0.56334176]
[1761552605077,2.148398,1156.2,1154.1,1.82757355]
[1761552605276,2.148398,1156.2,1154.2,0.56333657]
[1761552605473,2.148398,1156.2,1154.3,0.56333657]
[1761552605775,2.148398,1156.2,1154.4,0.56333657]
[1761552605978,2.148398,1156.2,1154.1,1.82757355]
[1761552606178,2.148398,1156.2,1154.2,0.56331661]
[1761552606378,2.148398,1156.2,1154.3,0.56331661]
[1761552606577,2.148398,1156.2,1154.4,0.56331661]
[1761552606776,2.148398,1156.2,1154.5,0.56331688]
[1761552607080,2.148398,1156.5,1154.1,1.181]
[1761552607277,2.148398,1156.5,1154.2,0.56332079]
[1761552607578,2.148398,1156.5,1154.3,0.56332079]
[1761552607779,2.148398,1156.5,1154.4,0.56332079]
[1761552607976,2.148398,1156.5,1154.5,0.56332079]
[1761552608279,2.148398,1156.5,1154.1,1.181]
[1761552608476,2.148398,1156.5,1154.2,0.56331074]
[1761552608681,2.148398,1156.4,1154.3,0.56331074]
[1761552608881,2.148398,1156.4,1154.4,0.56331074]
[1761552609079,0.15062164,1156.8,1154.5,0.56331074]
[1761552609279,0.15062164,1156.8,1154.1,1.181]
[1761552609478,0.15062164,1156.8,1154.2,0.56327246]
[1761552609679,0.15062164,1156.8,1154.3,0.56327246]
[1761552609877,0.15062164,1156.8,1154.4,0.56327246]
[1761552610078,0.15062164,1156.8,1154.1,1.181]
[1761552610380,2.29901964,1156.8,1154.2,0.5632633]
[1761552610581,2.29901964,1156.8,1154.3,0.5632633]
[1761552610779,2.148398,1156.6,1154.4,0.5632633]
[1761552611079,2.148398,1156.6,1154.0,0.64657355]
[1761552611278,2.148398,1156.3,1154.1,0.56321494]
[1761552611578,2.148398,1156.3,1154.2,0.56321494]
[1761552611781,2.148398,1156.3,1154.3,0.56321494]
[1761552611979,2.148398,1156.3,1154.0,0.64657355]
[1761552611980,2.148398,1156.3,1154.4,0.56321494]
[1761552612183,2.148398,1156.3,1154.0,0.64657355]
[1761552612380,2.148398,1156.3,1154.1,0.56184571]
[1761552612683,2.148398,1156.3,1154.2,0.56184571]
[1761552612884,2.148398,1156.3,1154.3,0.56184571]
[1761552613081,2.148398,1156.3,1154.4,0.56184571]
[1761552613285,2.148398,1156.3,1154.0,0.64657355]
[1761552613482,2.148398,1156.3,1154.1,0.5606266]
[1761552613686,2.148398,1156.3,1154.2,0.5606266]
[1761552613986,2.148398,1156.3,1154.3,1.743]
[1761552615383,2.148398,1156.4,1154.3,1.743]
[1761552615987,2.148398,1156.5,1154.3,1.743]
[1761552616485,2.148398,1156.6,1154.3,1.743]
[1761552619089,2.148398,1156.1,1154.3,1.743]
[1761552619591,0.15062164,1156.8,1154.3,1.743]
[1761552621890,2.148398,1156.3,1154.3,1.743]
[1761552622894,2.148398,1156.4,1154.3,1.743]
[1761552623895,2.148398,1156.2,1154.3,1.743]
[1761552624893,2.148398,1156.6,1154.3,1.743]
[1761552627495,2.29901964,1156.8,1154.3,1.743]
[1761552628598,0.15062164,1156.8,1154.3,1.743]
[1761552629596,2.148398,1156.5,1154.3,1.743]
[1761552631297,2.148398,1156.1,1154.3,1.743]
[1761552631601,2.148398,1156.4,1154.3,1.743]
[1761552632299,2.148398,1156.3,1154.3,1.743]
[1761552632803,3.0077572,1156.6,1154.3,1.743]
[1761552633003,2.148398,1156.7,1154.3,1.743]
[1761552633303,0.15062164,1156.8,1154.3,1.743]
[1761552633704,2.148398,1156.7,1154.3,1.743]
[1761552634100,5.1561552,1156.7,1154.3,1.743]
[1761552634301,2.148398,1156.3,1154.3,1.743]
[1761552634801,2.148398,1156.0,1154.3,1.743]
[1761552636305,2.148398,1156.1,1154.3,1.743]
[1761552636806,2.148398,1156.3,1154.3,1.743]
[1761552637804,3.0077572,1156.7,1154.3,1.743]
[1761552638309,0.15062164,1156.8,1154.3,1.743]
[1761552642513,2.148398,1156.5,1154.3,1.743]
[1761552643009,2.148398,1156.4,1154.3,1.743]
[1761552644512,2.148398,1156.3,1154.3,1.743]
[1761552645015,2.148398,1156.2,1154.3,1.743]
[1761552645711,2.148398,1156.3,1154.3,1.743]
[1761552646818,2.148398,1156.4,1154.3,1.743]
[1761552647819,2.148398,1156.3,1154.3,1.743]
[1761552648816,2.148398,1156.2,1154.3,1.743]
[1761552649415,3.15837884,1156.8,1154.3,1.743]
[1761552649614,0.15062164,1156.8,1154.3,1.743]
[1761552653522,2.148398,1156.5,1154.3,1.743]
[1761552653726,2.148398,1156.5,1154.3,0.3453772]
[1761552653922,3.0077572,1155.7,1154.3,0.3453772]
[1761552654127,2.148398,1155.2,1154.3,0.3453772]
[1761552654529,2.148398,1155.3,1154.3,0.3453772]
[1761552655123,2.148398,1155.9,1154.3,0.3453772]
[1761552655727,5.1561552,1156.1,1154.3,0.3453772]
[1761552655927,2.148398,1156.1,1154.3,0.3453772]
[1761552656625,2.148398,1156.3,1154.3,0.3453772]
[1761552657028,2.148398,1156.2,1154.3,0.3453772]
[1761552660326,2.148398,1156.0,1154.3,0.3453772]
[1761552660728,5.1561552,1156.5,1154.3,0.3453772]
[1761552661228,2.148398,1156.4,1154.3,0.3453772]
[1761552661729,2.148398,1156.3,1154.3,0.3453772]
[1761552661929,2.148398,1155.7,1154.3,0.3453772]
[1761552662930,2.148398,1155.8,1154.3,0.3453772]
[1761552663432,2.148398,1156.0,1154.3,0.3453772]
[1761552663935,3.0077572,1156.2,1154.3,0.3453772]
[1761552664134,2.148398,1156.6,1154.3,0.3453772]
[1761552664535,0.15062164,1156.8,1154.3,0.3453772]
[1761552665536,2.148398,1156.4,1154.3,0.3453772]
[1761552666136,2.148398,1155.8,1154.3,0.3453772]
[1761552667735,2.148398,1155.6,1154.3,0.3453772]
[1761552668239,2.148398,1156.7,1154.3,0.3453772]
[1761552669238,3.0077572,1156.2,1154.3,0.3453772]
[1761552669639,2.148398,1156.0,1154.3,0.3453772]
[1761552670236,2.148398,1155.7,1154.3,0.3453772]
[1761552671740,2.148398,1155.8,1154.3,0.3453772]
[1761552671938,2.148398,1155.8,1152.7,0.64657355]
[1761552672237,2.148398,1155.8,1152.8,0.56941383]
[1761552672440,2.148398,1155.8,1152.9,0.56941383]
[1761552672737,2.148398,1155.8,1153.0,0.56941383]
[1761552673036,2.148398,1155.8,1152.7,0.64657355]
[1761552673240,2.148398,1155.7,1152.8,0.56946448]
[1761552673437,2.148398,1155.7,1152.9,0.56946448]
[1761552673637,2.148398,1155.7,1153.0,0.56946448]
[1761552673841,2.148398,1155.8,1152.7,0.64657355]
[1761552674036,2.148398,1155.8,1152.8,0.56952118]
[1761552674238,2.148398,1155.8,1152.9,0.56952118]
[1761552674438,2.29901964,1156.8,1153.0,0.56952118]
[1761552674636,2.29901964,1156.8,1153.1,0.56952118]
[1761552674941,0.15062164,1156.8,1153.2,0.56946371]
[1761552675142,0.15062164,1156.8,1152.6,0.64657355]
[1761552675342,0.15062164,1156.8,1152.7,0.56943552]
[1761552675542,0.15062164,1156.8,1152.8,0.56943552]
[1761552675839,0.15062164,1156.8,1152.9,0.56943552]
[1761552676044,0.15062164,1156.8,1153.0,0.56943552]
[1761552676238,0.15062164,1156.8,1153.1,0.56943552]
[1761552676439,0.15062164,1156.8,1152.6,0.64657355]
[1761552676743,0.15062164,1156.8,1152.7,0.56943539]
[1761552676944,0.15062164,1156.8,1152.8,0.56943539]
[1761552677141,0.15062164,1156.8,1152.6,0.64657355]
[1761552677142,0.15062164,1156.8,1152.9,0.56943539]
[1761552677344,0.15062164,1156.8,1153.0,0.56943539]
[1761552677541,2.148398,1156.3,1153.1,0.56943539]
[1761552677843,2.148398,1156.3,1152.6,0.64657355]
[1761552678047,2.148398,1156.3,1152.7,0.5694313]
[1761552678244,2.148398,1156.3,1152.8,1.8114313]
[1761552678542,2.148398,1156.3,1152.9,0.5694313]
[1761552678747,2.148398,1156.3,1153.0,0.5694313]
[1761552678943,2.148398,1156.2,1152.8,1.242]
[1761552679147,2.148398,1156.2,1152.9,0.56942232]
[1761552679343,2.148398,1156.2,1153.0,0.56942232]
[1761552679545,2.148398,1156.2,1152.8,1.242]
[1761552679745,3.0077572,1156.1,1152.8,1.242]
[1761552680049,2.148398,1155.7,1152.8,1.242]
[1761552681052,2.148398,1155.8,1152.8,1.242]
[1761552687356,2.148398,1155.7,1152.8,1.242]
[1761552687857,2.148398,1155.6,1152.8,1.242]
[1761552690358,2.148398,1155.6,1152.1,0.64657355]
[1761552690555,2.148398,1155.5,1152.2,1.21482975]
[1761552690755,2.148398,1155.5,1152.3,0.5682562]
[1761552690955,2.148398,1155.4,1152.4,0.5682562]
[1761552691155,2.148398,1155.4,1152.5,0.5682562]
[1761552691455,2.148398,1155.5,1152.2,0.64657355]
[1761552691660,2.148398,1155.5,1152.3,0.56822412]
[1761552691860,2.148398,1155.5,1152.4,0.56822412]
[1761552692058,2.148398,1155.5,1152.5,0.56822412]
[1761552692261,2.148398,1155.5,1152.6,0.56820465]
[1761552692461,2.148398,1155.5,1152.1,0.64657355]
[1761552692758,2.148398,1155.7,1152.2,2.11020782]
[1761552692956,2.148398,1155.7,1152.3,0.56820782]
[1761552693258,2.148398,1155.6,1152.4,0.56820782]
[1761552693461,2.148398,1155.6,1152.5,0.56820782]
[1761552693756,2.148398,1155.6,1152.6,0.56820782]
[1761552693956,2.148398,1155.6,1152.2,1.542]
[1761552694155,2.148398,1155.6,1152.3,0.56823022]
[1761552694360,2.148398,1155.6,1152.4,0.56823022]
[1761552694558,2.148398,1155.6,1152.5,0.56823022]
[1761552694759,2.148398,1155.6,1152.6,0.56823022]
[1761552694961,2.148398,1155.6,1152.2,1.542]
[1761552695159,2.148398,1156.0,1152.3,0.56827517]
[1761552695364,2.148398,1156.0,1152.4,0.56827517]
[1761552695559,2.148398,1156.0,1152.5,0.56827517]
[1761552695758,2.148398,1156.1,1152.6,0.56827517]
[1761552695959,2.148398,1156.1,1152.2,1.542]
[1761552696156,2.148398,1156.1,1152.3,0.56833536]
[1761552696363,2.148398,1156.1,1152.4,0.56833536]
[1761552696558,2.148398,1156.1,1152.5,0.56833536]
[1761552696761,2.148398,1156.1,1152.6,0.56833536]
[1761552696965,2.148398,1156.1,1152.2,1.542]
[1761552697162,2.148398,1156.2,1152.3,0.56841481]
[1761552697362,2.148398,1156.2,1152.4,0.56841481]
[1761552697663,2.148398,1156.2,1152.5,0.56841481]
[1761552697865,2.148398,1156.1,1152.6,0.56841481]
[1761552698066,2.148398,1156.1,1152.2,1.542]
[1761552698367,2.29901964,1156.8,1152.3,0.56854906]
[1761552698567,2.29901964,1156.8,1152.2,1.542]
[1761552698568,2.29901964,1156.8,1152.4,0.56854906]
[1761552698767,2.29901964,1156.8,1152.2,1.542]
[1761552698768,2.29901964,1156.8,1152.5,0.56854906]
[1761552698967,2.29901964,1156.8,1152.6,0.56854906]
[1761552699166,2.29901964,1156.8,1152.7,0.56854906]
[1761552699364,2.29901964,1156.8,1152.2,1.542]
[1761552699662,2.29901964,1156.8,1152.3,0.56887784]
[1761552699863,2.29901964,1156.8,1152.4,0.56887784]
[1761552700062,2.29901964,1156.8,1152.5,0.56887784]
[1761552700267,2.29901964,1156.8,1152.6,0.56887784]
[1761552700466,2.148398,1156.6,1152.2,1.542]
[1761552700665,2.148398,1156.6,1152.3,0.56903087]
[1761552700866,2.148398,1156.6,1152.4,0.56903087]
[1761552701066,2.148398,1156.6,1152.5,0.56903087]
[1761552701263,2.148398,1156.6,1152.6,0.56903087]
[1761552701468,2.148398,1156.6,1152.2,1.542]
[1761552701665,2.148398,1156.6,1152.3,0.56920779]
[1761552701866,2.148398,1156.6,1152.2,1.542]
[1761552701867,2.148398,1156.5,1152.4,0.56920779]
[1761552702167,2.148398,1156.5,1152.5,0.56920779]
[1761552702364,2.148398,1156.4,1152.6,0.56920779]
[1761552702569,2.148398,1156.4,1152.2,1.542]
[1761552702766,2.148398,1156.4,1152.3,0.5694098]
[1761552702966,2.148398,1156.1,1152.4,0.5694098]
[1761552703168,2.148398,1156.1,1152.5,0.5694098]
[1761552703465,2.148398,1156.0,1152.6,0.5694098]
[1761552703669,2.148398,1156.1,1152.7,0.5694098]
[1761552703866,2.148398,1156.1,1152.2,1.542]
[1761552704169,3.0077572,1156.7,1152.2,1.542]
[1761552704170,2.148398,1156.0,1152.3,0.5695182]
[1761552704369,2.148398,1156.0,1152.4,0.5695182]
[1761552704571,2.148398,1156.0,1152.5,0.5695182]
[1761552704769,2.148398,1156.0,1152.6,0.5695182]
[1761552705065,2.148398,1156.0,1152.2,1.542]
[1761552705270,2.148398,1156.0,1152.3,0.56975519]
[1761552705570,2.148398,1156.0,1152.4,0.56975519]
[1761552705771,2.148398,1155.9,1152.5,0.56975519]
[1761552705965,2.148398,1155.9,1152.6,0.56975519]
[1761552706165,2.148398,1155.9,1152.2,1.542]
[1761552706366,2.148398,1155.9,1152.3,0.56989363]
[1761552706570,2.148398,1155.9,1152.4,0.56989363]
[1761552706766,2.148398,1155.9,1152.5,0.56989363]
[1761552706970,2.148398,1155.9,1152.6,0.56989363]
[1761552707168,2.148398,1155.8,1152.2,1.542]
[1761552707367,2.148398,1155.8,1152.3,0.57005343]
[1761552707571,2.148398,1155.8,1152.4,0.57005343]
[1761552707768,2.148398,1155.2,1152.5,0.57005343]
[1761552707972,2.148398,1155.2,1152.2,2.18857355]
[1761552708272,2.148398,1155.1,1152.3,0.5700587]
[1761552708466,2.148398,1155.1,1152.4,0.5700587]
[1761552708766,2.148398,1155.1,1152.5,0.5700587]
[1761552708971,2.148398,1155.1,1152.2,1.542]
[1761552709171,2.148398,1155.1,1152.3,0.57022979]
[1761552709370,2.148398,1155.2,1152.4,0.57022979]
[1761552709569,2.148398,1155.2,1152.5,0.57022979]
[1761552709772,2.148398,1155.9,1152.6,0.57022979]
[1761552709969,2.148398,1155.9,1152.2,1.542]
[1761552710268,2.148398,1155.8,1152.3,0.57041278]
[1761552710473,2.148398,1155.8,1152.4,0.57041278]
[1761552710672,2.148398,1155.8,1152.5,0.57041278]
[1761552710872,2.148398,1155.8,1152.6,0.57041278]
[1761552711073,2.148398,1155.8,1152.2,1.542]
[1761552711274,2.148398,1155.8,1152.3,0.57063393]
[1761552711473,2.148398,1155.8,1152.4,0.57063393]
[1761552711671,2.148398,1155.8,1152.5,0.57063393]
[1761552711877,2.148398,1155.8,1152.6,0.57063393]
[1761552712177,2.148398,1155.8,1152.7,0.57063393]
[1761552712475,2.148398,1155.8,1152.2,1.542]
[1761552712675,2.148398,1155.8,1152.3,0.57120852]
[1761552712879,2.148398,1155.8,1152.4,0.57120852]
[1761552713175,2.148398,1155.8,1152.5,0.57120852]
[1761552713373,2.148398,1155.8,1152.6,0.57120852]
[1761552713586,2.148398,1155.7,1152.7,0.57120852]
[1761552713774,2.148398,1155.7,1152.3,0.64657355]
[1761552714078,2.148398,1154.9,1152.4,0.57153429]
[1761552714278,2.148398,1154.9,1152.5,0.57153429]
[1761552714477,2.148398,1154.9,1152.6,0.57153429]
[1761552714677,2.148398,1154.9,1152.7,0.57153429]
[1761552714978,2.148398,1154.9,1152.3,0.64657355]
[1761552714979,2.148398,1154.9,1152.4,0.64657355]
[1761552715277,2.148398,1154.9,1152.5,0.57152158]
[1761552715474,2.148398,1154.9,1152.6,0.57152158]
[1761552715673,2.148398,1154.9,1152.7,0.57152158]
[1761552715877,2.148398,1154.9,1152.8,0.57152158]
[1761552716078,2.148398,1154.9,1152.4,0.64657355]
[1761552716374,2.148398,1154.9,1152.5,0.57150084]
[1761552716572,2.148398,1154.9,1152.6,0.57150084]
[1761552716774,2.148398,1154.9,1152.7,0.57150084]
[1761552716977,2.148398,1154.9,1152.8,0.57150084]
[1761552717274,2.148398,1154.9,1152.4,0.64657355]
[1761552717478,2.148398,1154.9,1152.5,0.5715246]
[1761552717678,2.148398,1154.9,1152.6,0.5715246]
[1761552717878,2.148398,1154.9,1152.7,0.5715246]
[1761552718179,2.148398,1155.0,1152.8,0.5715246]
[1761552718475,2.148398,1155.0,1152.4,0.64657355]
[1761552718675,3.0077572,1155.3,1152.5,0.57153381]
[1761552718676,2.148398,1154.9,1152.5,0.57153381]
[1761552718875,2.148398,1154.9,1152.6,0.57153381]
[1761552719179,2.148398,1154.9,1152.7,0.57153381]
[1761552719377,2.148398,1154.9,1152.8,0.57153381]
[1761552719575,2.148398,1154.9,1152.4,0.64657355]
[1761552719778,3.0077572,1155.3,1152.4,0.64657355]
[1761552719779,5.1561552,1155.3,1152.5,0.57152999]
[1761552720079,5.1561552,1155.3,1152.6,0.57152999]
[1761552720278,2.148398,1155.3,1152.7,0.57152999]
[1761552720576,2.148398,1155.3,1152.8,0.57152999]
[1761552720775,2.148398,1155.3,1152.4,0.64657355]
[1761552720977,2.148398,1155.3,1152.5,0.5715298]
[1761552721181,2.148398,1155.3,1152.6,0.5715298]
[1761552721475,2.148398,1155.3,1152.7,0.5715298]
[1761552721680,2.148398,1155.3,1152.8,0.5715298]
[1761552721877,2.148398,1155.3,1152.3,0.64657355]
[1761552722081,2.148398,1155.3,1152.4,0.57154765]
[1761552722280,2.148398,1155.3,1152.5,0.57154765]
[1761552722480,2.148398,1155.3,1152.6,0.57154765]
[1761552722676,2.148398,1155.3,1152.7,0.57154765]
[1761552722977,2.148398,1155.3,1152.8,0.57154765]
[1761552723175,2.148398,1155.3,1152.3,0.64657355]